fUST/lending_fUST_20250707
["ID","MTS","AMOUNT","RATE_DAILY","PERIOD"]
[370101374,1751881842578,-460.0,0.00017948,2]
[370101375,1751881842587,-460.0,0.0001795,2]
[370101376,1751881842596,-460.0,0.00017951,2]
[370101377,1751881842605,-460.0,0.00017951,2]
[370101378,1751881842615,-1324.75,0.00018221,2]
[370101379,1751881842623,-460.0,0.00018222,2]
[370101380,1751881842633,-460.0,0.00018222,2]
[370101381,1751881842642,-197.84000001,0.00018222,2]
[370101382,1751881842650,-460.0,0.00018222,2]
[370101383,1751881842659,-460.0,0.00018222,2]
[370101384,1751881842669,-460.0,0.00018222,2]
[370101385,1751881842678,-460.0,0.00018222,2]
[370101386,1751881842687,-460.0,0.00018225,2]
[370101387,1751881842696,-460.0,0.00018225,2]
[370101388,1751881842705,-1324.75,0.00018495,2]
[370101389,1751881842714,-460.0,0.00018496,2]
[370101390,1751881842723,-460.0,0.00018496,2]
[370101391,1751881842732,-460.0,0.00018496,2]
[370101392,1751881842744,-460.0,0.00018496,2]
[370101393,1751881842753,-460.0,0.00018496,2]
[370101394,1751881842763,-460.0,0.00018496,2]
[370101395,1751881842772,-460.0,0.00018499,2]
[370101396,1751881842781,-1324.75,0.00018769,2]
[370101397,1751881842790,-460.0,0.0001877,2]
[370101398,1751881842800,-460.0,0.0001877,2]
[370101399,1751881842809,-460.0,0.0001877,2]
[370101400,1751881842818,-460.0,0.0001877,2]
[370101401,1751881842827,-460.0,0.0001877,2]
[370101402,1751881842836,-460.0,0.0001877,2]
[370101403,1751881842846,-1324.75,0.00019043,2]
[370101404,1751881842854,-460.0,0.00019044,2]
[370101405,1751881842863,-460.0,0.00019044,2]
[370101406,1751881842872,-283.14,0.00019044,2]
[370101407,1751881842882,-460.0,0.00019044,2]
[370101408,1751881842891,-255.14,0.00019044,2]
[370101409,1751881842900,-460.0,0.00019044,2]
[370101410,1751881842910,-335.166952,0.00019178,2]
[370101411,1751881842919,-666.0,0.00019178,2]
[370101412,1751881842928,-166.666666,0.00019214,2]
[370101413,1751881842937,-500.0,0.00019262,2]
[370101414,1751881842947,-500.0,0.00019262,2]
[370101415,1751881842956,-151.0,0.00019262,2]
[370101416,1751881842965,-500.0,0.00019289,2]
[370101417,1751881842974,-500.0,0.00019289,2]
[370101418,1751881842984,-151.0,0.00019289,2]
[370101419,1751881842993,-1006.28,0.00019292,3]
[370101420,1751881843002,-503.14,0.00019292,3]
[370101421,1751881843012,-215.0738,0.00019301,2]
[370101422,1751881843021,-500.0,0.00019317,2]
[370101424,1751881843032,-500.0,0.00019317,2]
[370101426,1751881843041,-198.0,0.00019317,2]
[370101428,1751881843050,-1324.75,0.00019317,2]
[370101430,1751881843060,-460.0,0.00019318,2]
[370101432,1751881843069,-400.43,0.00019318,2]
[370101433,1751881843079,-460.0,0.00019318,2]
[370101435,1751881843089,-460.0,0.00019318,2]
[370101436,1751881843099,-500.0,0.00019344,2]
[370101437,1751881843108,-500.0,0.00019344,2]
[370101438,1751881843118,-166.666666,0.00019366,2]
[370101439,1751881843127,-500.0,0.00019372,2]
[370101440,1751881843137,-500.0,0.00019372,2]
[370101441,1751881843146,-500.0,0.00019399,2]
[370101442,1751881843156,-500.0,0.00019399,2]
[370101443,1751881843166,-500.0,0.00019426,2]
[370101444,1751881843175,-605.73739429,0.00019426,2]
[370101445,1751881843185,-405.17210654,0.00019454,2]
[370101446,1751881843194,-166.666666,0.00019518,2]
[370101448,1751881843204,-1324.75,0.00019591,2]
[370101451,1751881843213,-469.72,0.00019592,2]
[370101452,1751881843222,-460.0,0.00019592,2]
[370101453,1751881843232,-460.0,0.00019592,2]
[370101454,1751881843241,-214.06929976,0.0001963,2]
[370101455,1751881843251,-215.21338352,0.0001963,2]
[370101456,1751881843260,-12584.46609586,0.0001963,2]
[370101458,1751881843270,-160.0,0.0001963,2]
[370101460,1751881843280,-160.0,0.0001963,2]
[370101462,1751881843290,-837.79946008,0.0001963,2]
[370101464,1751881843299,-160.0,0.0001963,2]
[370101465,1751881843309,-848.27993403,0.0001963,2]
[370101468,1751881843318,-160.0,0.0001963,2]
[370101470,1751881843328,-230.48668418,0.0001963,2]
[370101473,1751881843338,-160.0,0.0001963,2]
[370101476,1751881843349,-160.0,0.00019633,2]
[370101479,1751881843361,-160.0,0.00019633,2]
[370101482,1751881843371,-160.0,0.00019633,2]
[370101485,1751881843381,-166.666666,0.0001967,2]
[370101487,1751881843391,-166.666666,0.00019822,2]
[370101489,1751881843401,-1324.75,0.00019865,2]
[370101491,1751881843411,-460.0,0.00019866,2]
[370101493,1751881843420,-460.0,0.00019866,2]
[370101495,1751881843430,-201.85100001,0.000199,2]
[370101496,1751881843439,-166.666666,0.00019974,2]
[370101498,1751881843449,-434.82246799,0.0002,2]
[370101499,1751881843459,-300.0,0.0002,2]
[370101500,1751881843468,-166.666666,0.00020126,2]
[370101502,1751881843478,-1324.75,0.00020139,2]
[370101503,1751881843487,-460.0,0.0002014,2]
[370101504,1751881843496,-404.68879828,0.0002014,2]
[370101506,1751881843506,-166.666666,0.00020278,2]
[370101508,1751881843516,-1324.75,0.00020413,2]
[370101509,1751881843525,-460.0,0.00020414,2]
[370101510,1751881843536,-166.666666,0.00020429,2]
[370101511,1751881843545,-166.666666,0.00020581,2]
[370101513,1751881843554,-1631.33,0.000206,2]
[370101515,1751881843564,-417.174,0.00020622,2]
[370101516,1751881843574,-223.0315306,0.0002067,2]
[370101518,1751881843583,-1324.75,0.00020687,2]
[370101520,1751881843594,-188.52251241,0.00020688,2]
[370101522,1751881843603,-166.666666,0.00020733,2]
[370101524,1751881843612,-166.666666,0.00020885,2]
[370101526,1751881843622,-1324.75,0.00020961,2]
[370101528,1751881843631,-1324.75,0.00021235,2]
[370101530,1751881843640,-1324.75,0.00021509,2]
[370101532,1751881843649,-549.20648262,0.00021667,2]
[370101534,1751881843659,-1324.75,0.00021783,2]
[370101536,1751881843668,-201.85100001,0.000219,6]
[370101538,1751881843677,-164.904123,0.00021918,2]
[370101539,1751881843687,-500.0,0.00021918,2]
[370101540,1751881843696,-500.0,0.00021918,2]
[370101541,1751881843705,-500.0,0.00021918,2]
[370101542,1751881843715,-500.0,0.00021918,2]
[370101543,1751881843724,-224.05882463,0.00021918,2]
[370101545,1751881843733,-500.0,0.00021918,2]
[370101547,1751881843746,-500.0,0.00021918,2]
[370101549,1751881843756,-500.0,0.00021918,2]
[370101551,1751881843765,-500.0,0.00021918,2]
[370101553,1751881843775,-500.0,0.00021918,2]
[370101554,1751881843786,-596.02521056,0.00021918,2]
[370101555,1751881843796,-12584.46609586,0.00022,7]
[370101556,1751881843806,-35308.11,0.00022,7]
[370101557,1751881843816,-848.27993403,0.00022,7]
[370101558,1751881843828,-214.06929976,0.00022,7]
[370101559,1751881843838,-160.0,0.00022,7]
[370101560,1751881843848,-1965.9,0.00022,7]
[370101561,1751881843857,-231.28369723,0.00022039,2]
[370101562,1751881843866,-1324.75,0.00022057,2]
[370101563,1751881843877,-1324.75,0.00022331,2]
[370101564,1751881843886,-12584.46609586,0.00022424,10]
[370101565,1751881843895,-848.27993403,0.00022424,10]
[370101566,1751881843905,-214.06929976,0.00022424,10]
[370101567,1751881843914,-8369.2,0.00022424,10]
[370101568,1751881843923,-6974.33,0.00022424,10]
[370101569,1751881843933,-524.98484073,0.00022424,10]
[370101570,1751881843942,-335.166952,0.00022603,2]
[370101571,1751881843952,-1324.75,0.00022605,2]
[370101572,1751881843962,-2413.50440241,0.000228,2]
[370101573,1751881843970,-1324.75020355,0.00022879,2]
[370101574,1751881843980,-502.21,0.00023,3]
[370101575,1751881843989,-500.0,0.00023,3]
[370101576,1751881843999,-500.0,0.00023,3]
[370101577,1751881844009,-160.0,0.00023,2]
[370101578,1751881844018,-330.67695274,0.00023,2]
[370101579,1751881844027,-1631.33,0.000233,7]
[370101580,1751881844037,-239.84119403,0.00023408,2]
[370101581,1751881844047,-177.763542,0.00023507,2]
[370101582,1751881844056,-159.4922776,0.00023507,2]
[370101583,1751881844066,-576.0368563,0.00023507,2]
[370101584,1751881844077,-159.4922776,0.00023507,2]
[370101585,1751881844086,-576.0368563,0.00023507,2]
[370101586,1751881844096,-177.763542,0.00023507,2]
[370101587,1751881844105,-153.0,0.00023534,2]
[370101588,1751881844237,-153.0,0.00023534,2]
[370101589,1751881844248,-153.0,0.00023534,2]
[370101590,1751881844258,-366.6942869,0.00023641,2]
[370101591,1751881844267,-500.0,0.000237,2]
[370101592,1751881844277,-500.0,0.0002377,2]
[370101593,1751881844287,-500.0,0.0002377,2]
[370101594,1751881844297,-500.0,0.0002377,2]
[370101595,1751881844309,-500.0,0.0002377,2]
[370101596,1751881844319,-500.0,0.0002377,2]
[370101597,1751881844329,-500.0,0.0002377,2]
[370101598,1751881844339,-600.0,0.0002377,2]
[370101599,1751881844349,-500.0,0.0002377,2]
[370101600,1751881844358,-500.0,0.0002377,2]
[370101601,1751881844369,-500.0,0.0002377,2]
[370101602,1751881844378,-500.0,0.0002377,2]
[370101603,1751881844388,-500.0,0.0002377,2]
[370101604,1751881844397,-501.01682281,0.0002377,2]
[370101605,1751881844407,-500.0,0.0002377,2]
[370101606,1751881844416,-500.0,0.0002377,2]
[370101607,1751881844426,-500.0,0.0002377,2]
[370101608,1751881844436,-500.0,0.0002377,2]
[370101609,1751881844446,-501.8141145,0.0002377,2]
[370101610,1751881844455,-156.93621546,0.00023781,2]
[370101611,1751881844465,-153.0626108,0.00023781,2]
[370101612,1751881844474,-201.85100001,0.000239,10]
[370101613,1751881844483,-156.93621546,0.00023945,2]
[370101614,1751881844493,-1000.0,0.00023984,5]
[370101615,1751881844502,-160.0,0.00024,7]
[370101616,1751881844512,-160.0,0.00024,10]
[370101617,1751881844521,-160.0,0.00024,7]
[370101618,1751881844531,-160.0,0.00024,10]
[370101619,1751881844541,-160.0,0.00024,7]
[370101620,1751881844550,-160.0,0.00024,10]
[370101621,1751881844562,-837.79946008,0.00024,7]
[370101622,1751881844571,-837.79946008,0.00024,10]
[370101623,1751881844580,-153.0626108,0.00024,2]
[370101624,1751881844590,-230.48668418,0.00024,7]
[370101625,1751881844599,-230.48668418,0.00024,10]
[370101626,1751881844608,-1965.9,0.00024,7]
[370101627,1751881844617,-215.21338352,0.00024,7]
[370101628,1751881844627,-215.21338352,0.00024,10]
[370101629,1751881844636,-151.0,0.00024014,7]
[370101630,1751881844646,-741.0,0.00024058,2]
[370101631,1751881844656,-741.0,0.00024077,2]
[370101632,1751881844666,-167.61624181,0.00024082,2]
[370101633,1751881844675,-741.0,0.00024086,2]
[370101634,1751881844684,-35308.11,0.000241,7]
[370101635,1751881844694,-61267.920004,0.00024105,2]
[370101636,1751881844704,-156.93621546,0.00024137,2]
[370101637,1751881844713,-232.55858171,0.00024148,2]
[370101638,1751881844723,-741.0,0.00024164,2]
[370101639,1751881844733,-160.0,0.0002417,7]
[370101640,1751881844744,-160.0,0.0002417,7]
[370101641,1751881844754,-160.0,0.0002417,7]
[370101642,1751881844764,-837.79946008,0.0002417,7]
[370101643,1751881844773,-153.0626108,0.00024192,2]
[370101644,1751881844783,-733.3885738,0.00024192,2]
[370101645,1751881844793,-230.48668418,0.000242,7]
[370101646,1751881844803,-848.27993403,0.000242,7]
[370101647,1751881844813,-741.0,0.00024218,2]
[370101648,1751881844823,-366.6942869,0.00024219,2]
[370101649,1751881844832,-300.0,0.00024229,3]
[370101650,1751881844842,-313.94577453,0.00024248,2]
[370101651,1751881844851,-741.0,0.00024258,2]
[370101652,1751881844861,-741.0,0.00024285,2]
[370101653,1751881844871,-151.0,0.000243,5]
[370101654,1751881844880,-1000.0,0.00024318,2]
[370101655,1751881844890,-1137.30663764,0.00024318,2]
[370101656,1751881844899,-1000.0,0.00024318,2]
[370101657,1751881844908,-1000.0,0.00024318,2]
[370101658,1751881844918,-883.50705906,0.00024318,2]
[370101659,1751881844927,-1000.0,0.00024318,2]
[370101660,1751881844937,-1081.53029727,0.00024318,2]
[370101661,1751881844948,-1000.0,0.00024318,2]
[370101662,1751881844957,-222.04728116,0.00024318,2]
[370101663,1751881844967,-1000.0,0.00024318,2]
[370101664,1751881844977,-1000.0,0.00024318,2]
[370101665,1751881844986,-1000.0,0.00024318,2]
[370101666,1751881844996,-1000.0,0.00024318,2]
[370101667,1751881845006,-334.476543,0.00024318,2]
[370101668,1751881845015,-156.93621546,0.00024329,2]
[370101669,1751881845025,-159.4922776,0.00024329,2]
[370101670,1751881845035,-177.763542,0.00024329,2]
[370101671,1751881845044,-576.0368563,0.00024329,2]
[370101672,1751881845054,-159.4922776,0.00024329,2]
[370101673,1751881845064,-177.763542,0.00024329,2]
[370101674,1751881845073,-576.0368563,0.00024329,2]
[370101675,1751881845083,-576.0368563,0.00024329,2]
[370101676,1751881845092,-181.5045785,0.00024329,2]
[370101677,1751881845102,-318.9845552,0.00024329,2]
[370101678,1751881845111,-576.0368563,0.00024329,2]
[370101679,1751881845121,-576.0368563,0.00024329,2]
[370101680,1751881845131,-576.0368563,0.00024329,2]
[370101681,1751881845140,-741.0,0.00024341,2]
[370101682,1751881845150,-741.0,0.00024368,2]
[370101683,1751881845159,-232.55858171,0.00024373,2]
[370101684,1751881845169,-151.0,0.00024386,7]
[370101685,1751881845178,-741.0,0.00024397,2]
[370101686,1751881845188,-184.05144806,0.00024411,2]
[370101687,1751881845198,-167.61624181,0.00024411,2]
[370101688,1751881845207,-153.0626108,0.00024411,2]
[370101689,1751881845217,-600.0,0.00024483,2]
[370101690,1751881845226,-156.93621546,0.00024493,2]
[370101691,1751881845236,-967.0,0.00024541,2]
[370101692,1751881845245,-646.0,0.00024541,2]
[370101693,1751881845255,-2153.0,0.00024541,2]
[370101694,1751881845264,-406.0,0.00024541,2]
[370101695,1751881845273,-429.128,0.00024541,2]
[370101696,1751881845283,-61267.92000399,0.00024577,2]
[370101697,1751881845293,-232.55858171,0.00024599,2]
[370101698,1751881845302,-78880.64,0.000246,2]
[370101699,1751881845312,-153.0626108,0.0002463,2]
[370101700,1751881845321,-741.0,0.00024657,2]
[370101701,1751881845330,-150.0,0.00024658,2]
[370101702,1751881845339,-500.0,0.00024658,2]
[370101703,1751881845349,-477.17981872,0.00024658,2]
[370101704,1751881845358,-500.0,0.00024658,2]
[370101705,1751881845368,-500.0,0.00024658,2]
[370101706,1751881845378,-500.0,0.00024658,2]
[370101707,1751881845388,-500.0,0.00024658,2]
[370101708,1751881845397,-366.6942869,0.00024663,2]
[370101709,1751881845406,-156.93621546,0.00024685,2]
[370101710,1751881845416,-741.0,0.00024695,2]
[370101711,1751881845425,-1631.33,0.000247,7]
[370101712,1751881845435,-901.52706285,0.00024738,2]
[370101713,1751881845444,-151.0,0.00024757,7]
[370101714,1751881845454,-248.71531821,0.00024777,2]
[370101715,1751881845463,-177.763542,0.0002481,2]
[370101716,1751881845472,-400.5564685,0.0002481,2]
[370101717,1751881845482,-177.763542,0.0002481,2]
[370101718,1751881845491,-576.0368563,0.0002481,2]
[370101719,1751881845501,-153.0626108,0.00024822,2]
[370101720,1751881845510,-169.4987685,0.00024823,2]
[370101721,1751881845520,-232.55858171,0.00024824,2]
[370101722,1751881845530,-156.93621546,0.00024849,2]
[370101723,1751881845539,-1500.0,0.00024866,2]
[370101724,1751881845549,-1500.0,0.00024866,2]
[370101725,1751881845558,-1500.0,0.00024866,2]
[370101726,1751881845568,-1500.0,0.00024866,2]
[370101727,1751881845578,-1500.0,0.00024866,2]
[370101728,1751881845587,-1050.15772205,0.00024866,2]
[370101729,1751881845597,-1500.0,0.00024866,2]
[370101730,1751881845606,-596.20139154,0.00024866,2]
[370101731,1751881845615,-1500.0,0.00024866,2]
[370101732,1751881845624,-500.0,0.00024873,2]
[370101733,1751881845634,-323461.48337,0.00024899,4]
[370101734,1751881845643,-260.44449887,0.000249,2]
[370101735,1751881845653,-163014.63469844,0.000249,2]
[370101736,1751881845736,-3307.97757636,0.000249,2]
[370101737,1751881845757,-455.18249544,0.000249,2]
[370101738,1751881845787,-3446.8251939,0.000249,2]
[370101739,1751881845798,-2350.0,0.000249,2]
[370101740,1751881845809,-321.06130044,0.000249,2]
[370101741,1751881845835,-11123.12316708,0.000249,2]
[370101742,1751881845912,-177.763542,0.00023507,2]
[370101743,1751881845923,-159.4922776,0.00023507,2]
[370101744,1751881845932,-576.0368563,0.00023507,2]
[370101745,1751881845941,-3385.4861183,0.000249,2]
[370101747,1751881955715,5000.0,0.000176,6]
[370101749,1751882228349,513.0,0.000165,2]
[370101750,1751882303546,164.904123,0.00013699,2]
[370101751,1751882569231,1999.0,0.00027397,120]
[370101753,1751882732118,-1200.0,0.00016567,2]
[370101754,1751882732141,-230.44539582,0.00016568,2]
[370101755,1751882732162,-394.73990469,0.00016568,2]
[370101756,1751882732185,-500.0,0.00016568,2]
[370101757,1751882732206,-500.0,0.00016568,2]
[370101758,1751882732227,-149.25899926,0.00016568,2]
[370101759,1751882757091,-350.74100074,0.00016568,2]
[370101760,1751882757114,-500.0,0.00016568,2]
[370101761,1751882757135,-500.0,0.00016568,2]
[370101762,1751882757155,-500.0,0.00016568,2]
[370101763,1751882757176,-467.1015672,0.00016568,2]
[370101764,1751882957063,4327.07556826,0.000165,2]
[370101765,1751882957088,672.92443174,0.000165,2]
[370101766,1751882977243,5000.0,0.000165,2]
[370101801,1751883031838,-300.0,0.00016565,2]
[370101802,1751883031848,-161.31177708,0.00016566,2]
[370101803,1751883031857,-276.31793328,0.00016566,2]
[370101804,1751883031867,-474.34948991,0.00016566,2]
[370101806,1751883031877,-500.0,0.00016566,2]
[370101808,1751883031886,-500.0,0.00016566,2]
[370101809,1751883031895,-500.0,0.00016566,2]
[370101810,1751883031905,-500.0,0.00016566,2]
[370101811,1751883031915,-500.0,0.00016566,2]
[370101812,1751883031925,-500.0,0.00016566,2]
[370101813,1751883031934,-501.5683492,0.00016566,2]
[370101814,1751883031943,-500.0,0.00016566,2]
[370101816,1751883031953,-500.0,0.00016566,2]
[370101817,1751883031962,-550.27763491,0.00016566,2]
[370101818,1751883031973,-500.0,0.00016566,2]
[370101819,1751883031982,-500.0,0.00016566,2]
[370101820,1751883031991,-500.0,0.00016566,2]
[370101821,1751883032001,-500.0,0.00016566,2]
[370101822,1751883032011,-500.0,0.00016566,2]
[370101824,1751883032020,-384.63779715,0.00016566,2]
[370101826,1751883032030,-500.0,0.00016566,2]
[370101828,1751883032039,-500.0,0.00016566,2]
[370101830,1751883032048,-500.0,0.00016566,2]
[370101832,1751883032057,-500.0,0.00016566,2]
[370101833,1751883032067,-500.0,0.00016566,2]
[370101835,1751883032076,-500.0,0.00016566,2]
[370101836,1751883032086,-500.0,0.00016566,2]
[370101838,1751883032095,-500.0,0.00016566,2]
[370101840,1751883032105,-513.11564857,0.00016566,2]
[370101841,1751883032114,-166.89139721,0.00016566,2]
[370101842,1751883032124,-500.0,0.00016566,2]
[370101843,1751883032134,-500.0,0.00016566,2]
[370101844,1751883032144,-500.0,0.00016566,2]
[370101845,1751883032154,-500.0,0.00016566,2]
[370101846,1751883032163,-500.0,0.00016566,2]
[370101847,1751883032173,-427.39248719,0.00016566,2]
[370101848,1751883032183,-500.0,0.00016566,2]
[370101849,1751883032192,-500.0,0.00016566,2]
[370101850,1751883032202,-500.0,0.00016566,2]
[370101851,1751883032211,-500.0,0.00016566,2]
[370101852,1751883032221,-500.0,0.00016566,2]
[370101853,1751883032230,-500.0,0.00016566,2]
[370101854,1751883032239,-500.0,0.00016566,2]
[370101855,1751883032248,-500.0,0.00016566,2]
[370101856,1751883032258,-500.0,0.00016566,2]
[370101857,1751883032266,-500.0,0.00016566,2]
[370101858,1751883032275,-500.0,0.00016566,2]
[370101859,1751883032285,-500.0,0.00016566,2]
[370101860,1751883032294,-589.52453025,0.00016566,2]
[370101861,1751883032303,-500.0,0.00016566,2]
[370101862,1751883032313,-492.75933116,0.00016566,2]
[370101863,1751883032323,-500.0,0.00016566,2]
[370101864,1751883032333,-500.0,0.00016566,2]
[370101865,1751883032346,-476.77056905,0.00016566,2]
[370101866,1751883032355,-567.38996137,0.00016566,2]
[370101867,1751883032365,-460.0,0.00016566,2]
[370101868,1751883032374,-460.0,0.00016566,2]
[370101869,1751883032385,-460.0,0.00016566,2]
[370101870,1751883032393,-460.0,0.00016566,2]
[370101871,1751883032402,-460.0,0.00016566,2]
[370101872,1751883032412,-460.0,0.00016566,2]
[370101873,1751883032422,-460.0,0.00016566,2]
[370101874,1751883032432,-460.0,0.00016566,2]
[370101875,1751883032442,-460.0,0.00016566,2]
[370101876,1751883032451,-10030.77733926,0.00016566,2]
[370101877,1751883032461,-160.0,0.00016569,2]
[370101878,1751883032471,-460.0,0.0001657,2]
[370101879,1751883032482,-460.0,0.0001657,2]
[370101880,1751883032492,-460.0,0.00016571,2]
[370101881,1751883032675,-460.0,0.00016571,2]
[370101882,1751883032686,-460.0,0.00016571,2]
[370101883,1751883032695,-460.0,0.00016571,2]
[370101884,1751883032705,-460.0,0.00016571,2]
[370101885,1751883032715,-460.0,0.00016571,2]
[370101886,1751883032725,-460.0,0.00016571,2]
[370101887,1751883032735,-460.0,0.00016571,2]
[370101888,1751883032745,-460.0,0.00016571,2]
[370101889,1751883032755,-460.0,0.00016573,2]
[370101890,1751883032765,-460.0,0.00016573,2]
[370101891,1751883032774,-460.0,0.00016573,2]
[370101892,1751883032784,-460.0,0.00016573,2]
[370101893,1751883032793,-460.0,0.00016573,2]
[370101894,1751883032803,-460.0,0.00016574,2]
[370101895,1751883032813,-460.0,0.00016574,2]
[370101896,1751883032827,-460.0,0.00016574,2]
[370101897,1751883032843,-437.76073033,0.00016574,2]
[370101898,1751883032853,-460.0,0.00016577,2]
[370101899,1751883032864,-477.8,0.00016577,2]
[370101900,1751883032874,-460.0,0.00016577,2]
[370101901,1751883032885,-460.0,0.00016578,2]
[370101902,1751883032894,-460.0,0.0001684,2]
[370101903,1751883032905,-460.0,0.0001684,2]
[370101904,1751883032914,-460.0,0.0001684,2]
[370101905,1751883032924,-460.0,0.00016845,2]
[370101906,1751883032934,-460.0,0.00016845,2]
[370101907,1751883032946,-291.52002066,0.00016845,2]
[370101908,1751883032956,-460.0,0.00016845,2]
[370101909,1751883032965,-460.0,0.00016845,2]
[370101910,1751883032975,-460.0,0.00016847,2]
[370101911,1751883032985,-460.0,0.00016847,2]
[370101912,1751883032996,-460.0,0.00016847,2]
[370101913,1751883033007,-460.0,0.00016847,2]
[370101914,1751883033017,-460.0,0.00016847,2]
[370101915,1751883033027,-460.0,0.00016847,2]
[370101916,1751883033037,-460.0,0.00016847,2]
[370101917,1751883033047,-460.0,0.00016847,2]
[370101918,1751883033058,-15.9416632,0.00016847,2]
[370101919,1751883033073,-444.0583368,0.00016847,2]
[370101920,1751883033083,-460.0,0.00016847,2]
[370101921,1751883033096,-460.0,0.00016847,2]
[370101922,1751883033106,-500.0,0.00016847,2]
[370101923,1751883033116,-460.0,0.00016848,2]
[370101924,1751883033126,-500.0,0.00017094,2]
[370101925,1751883033136,-460.0,0.00017114,2]
[370101926,1751883033146,-460.0,0.00017119,2]
[370101927,1751883033157,-460.0,0.00017119,2]
[370101928,1751883033167,-238.25491378,0.00017119,2]
[370101929,1751883033177,-460.0,0.00017121,2]
[370101930,1751883033187,-460.0,0.00017121,2]
[370101931,1751883033198,-460.0,0.00017121,2]
[370101932,1751883033208,-460.0,0.00017121,2]
[370101933,1751883033218,-460.0,0.00017121,2]
[370101934,1751883033228,-460.0,0.00017121,2]
[370101935,1751883033238,-460.0,0.00017121,2]
[370101936,1751883033248,-460.0,0.00017122,2]
[370101937,1751883033258,-500.0,0.00017206,2]
[370101938,1751883033269,-460.0,0.00017393,2]
[370101939,1751883033280,-460.0,0.00017395,2]
[370101940,1751883033290,-460.0,0.00017395,2]
[370101941,1751883033300,-460.0,0.00017395,2]
[370101942,1751883033311,-477.08,0.00017395,2]
[370101943,1751883033322,-460.0,0.00017396,2]
[370101944,1751883033332,-11345.11913728,0.00017396,2]
[370101962,1751883037914,-460.0,0.00017114,2]
[370101964,1751883037924,-500.0,0.00017206,2]
[370101966,1751883037934,-460.0,0.00017388,2]
[370101967,1751883037944,-6596.34045999,0.00017396,2]
[370101968,1751883038073,-6908.54040273,0.00017396,2]
[370101969,1751883038083,-1000.0,0.00017642,2]
[370101970,1751883038092,-460.0,0.00017662,2]
[370101971,1751883038102,-460.0,0.00017667,2]
[370101972,1751883038112,-460.0,0.00017669,2]
[370101973,1751883038122,-460.0,0.00017669,2]
[370101975,1751883038131,-460.0,0.00017669,2]
[370101976,1751883038141,-460.0,0.0001767,2]
[370101977,1751883038150,-500.0,0.00017754,2]
[370101978,1751883038160,-201.85100001,0.000179,2]
[370101979,1751883038170,-460.0,0.00017936,2]
[370101980,1751883038180,-460.0,0.00017943,2]
[370101981,1751883038190,-460.0,0.00017943,2]
[370101982,1751883038199,-460.0,0.00017944,2]
[370101983,1751883038209,-420.0,0.00018101,2]
[370101984,1751883038219,-1500.0,0.0001819,2]
[370101985,1751883038228,-460.0,0.0001821,2]
[370101986,1751883038238,-460.0,0.00018217,2]
[370101987,1751883038247,-460.0,0.00018217,2]
[370101988,1751883038257,-460.0,0.00018218,2]
[370101989,1751883038267,-460.0,0.00018484,2]
[370101990,1751883038277,-460.0,0.00018491,2]
[370101991,1751883038287,-460.0,0.00018491,2]
[370101992,1751883038297,-460.0,0.00018492,2]
[370101993,1751883038306,-500.0,0.00018737,2]
[370101994,1751883038316,-500.0,0.00018738,2]